Workbook

Sheet मासिक कॉलेज बजट
B1: मासिक
A2: ="" ->  | B2: कॉलेज बजट
B5: =chart_calcs!$D$6 -> मार्चआय: | F5: =chart_calcs!$D$7 -> मार्च व्यय: | N5: =chart_calcs!$D$8 -> मार्च नकद प्रवाहों:
B6: =" "&chart_calcs!$F$6 -> रु2,425 | F6: =" "&chart_calcs!$F$7 -> रु2,233 | N6: =" "&chart_calcs!$F$8 -> रु192
B26: जन | C26: प्रथम बजट माह का चयन करें
Q27: =SelectedPeriod -> मार्च
B28: व्यय के बाद मासिक नकद | D28: =FirstMonth -> जनवरी | E28: =NextMonth -> फरवरी | F28: मार्च | G28: अप्रैल | H28: मई | I28: जून | J28: जुलाई | K28: अगस्त | L28: सितम्बर | M28: अक्तूबर | N28: नवम्बर | O28: दिसम्बर | P28: वर्ष | Q28: % इंक
B29: नकद प्रवाह | D29: =D38-D73 -> 169 | E29: 69 | F29: 192 | G29: 199 | H29: 204 | I29: (771) | J29: 124 | K29: 154 | L29: (721) | M29: 109 | N29: 34 | O29: (61) | P29: =SUM(D29:O29) -> (299) | Q29: =INDEX($D29:$P29,,SelectedPeriodColumn)/INDEX($D$38:$P$38,,SelectedPeriodColumn) -> 7.9%
B30: संचयी नकद प्रवाह | D30: =SUM($D$29:D$29) -> 169 | E30: =SUM($D$29:E$29) -> 238 | F30: =SUM($D$29:F$29) -> 430 | G30: =SUM($D$29:G$29) -> 629 | H30: =SUM($D$29:H$29) -> 833 | I30: =SUM($D$29:I$29) -> 62 | J30: =SUM($D$29:J$29) -> 186 | K30: =SUM($D$29:K$29) -> 340 | L30: =SUM($D$29:L$29) -> (381) | M30: =SUM($D$29:M$29) -> (272) | N30: =SUM($D$29:N$29) -> (238) | O30: =SUM($D$29:O$29) -> (299)
B32: मासिक | D32: =FirstMonth -> जनवरी | E32: =NextMonth -> फरवरी | F32: मार्च | G32: अप्रैल | H32: मई | I32: जून | J32: जुलाई | K32: अगस्त | L32: सितम्बर | M32: अक्तूबर | N32: नवम्बर | O32: दिसम्बर | P32: वर्ष | Q32: % इंक
B33: आपको दी गई वित्तीय सहायता (अनुदान, छात्रवृत्ति, ऋण) | D33: 0 | E33: 0 | F33: 750 | G33: 750 | H33: 750 | I33: 750 | J33: 750 | K33: 750 | L33: 750 | M33: 750 | N33: 750 | O33: 750 | P33: =SUM(D33:O33) -> 7,500 | Q33: =INDEX($D33:$P33,,SelectedPeriodColumn)/INDEX($D$38:$P$38,,SelectedPeriodColumn) -> 30.9%
B34: किसी कार्य से कर के बाद का वेतन | D34: 450 | E34: 450 | F34: 450 | G34: 450 | H34: 450 | I34: 450 | J34: 450 | K34: 450 | L34: 550 | M34: 350 | N34: 350 | O34: 350 | P34: 5,200 | Q34: =INDEX($D34:$P34,,SelectedPeriodColumn)/INDEX($D$38:$P$38,,SelectedPeriodColumn) -> 18.6%
B35: परिवार से आर्थिक सहायता | D35: 200 | E35: 200 | F35: 1,000 | G35: 350 | H35: 350 | I35: 350 | J35: 350 | K35: 350 | L35: 350 | M35: 350 | N35: 350 | O35: 350 | P35: 4,550 | Q35: =INDEX($D35:$P35,,SelectedPeriodColumn)/INDEX($D$38:$P$38,,SelectedPeriodColumn) -> 41.2%
B36: बचत से निकासी | D36: 500 | E36: 350 | F36: 150 | G36: 0 | H36: 0 | I36: 0 | J36: 0 | K36: 0 | L36: 0 | M36: 0 | N36: 0 | O36: 0 | P36: 1,000 | Q36: =INDEX($D36:$P36,,SelectedPeriodColumn)/INDEX($D$38:$P$38,,SelectedPeriodColumn) -> 6.2%
B37: अन्य (बाल समर्थन, सार्वजनिक सहायता, उपहार आदि) | D37: 75 | E37: 75 | F37: 75 | G37: 75 | H37: 75 | I37: 75 | J37: 75 | K37: 75 | L37: 75 | M37: 75 | N37: 75 | O37: 75 | P37: 900 | Q37: =INDEX($D37:$P37,,SelectedPeriodColumn)/INDEX($D$38:$P$38,,SelectedPeriodColumn) -> 3.1%
B38: कुल आय | D38: =SUM(D33:D37) -> 1,225 | E38: 1,075 | F38: 2,425 | G38: 1,625 | H38: 1,625 | I38: 1,625 | J38: 1,625 | K38: 1,625 | L38: 1,725 | M38: 1,525 | N38: 1,525 | O38: 1,525 | P38: 19,150 | Q38: =INDEX($D38:$P38,,SelectedPeriodColumn)/INDEX($D$38:$P$38,,SelectedPeriodColumn) -> 100.0%
B40: मासिक व्यय | D40: =FirstMonth -> जनवरी | E40: =NextMonth -> फरवरी | F40: मार्च | G40: अप्रैल | H40: मई | I40: जून | J40: जुलाई | K40: अगस्त | L40: सितम्बर | M40: अक्तूबर | N40: नवम्बर | O40: दिसम्बर | P40: वर्ष | Q40: % इंक
B41: कमरा और भोजन | D41: =SUM(D42:D44) -> 565 | E41: 565 | F41: 565 | G41: 565 | H41: 565 | I41: 565 | J41: 565 | K41: 565 | L41: 565 | M41: 565 | N41: 565 | O41: 565 | P41: =SUM(D41:O41) -> 6,780 | Q41: =INDEX($D41:$P41,,SelectedPeriodColumn)/INDEX($D$73:$P$73,,SelectedPeriodColumn) -> 25.3%
C42: किराया, ऋण या छात्रावास का कमरा | D42: 315 | E42: 315 | F42: 315 | G42: 315 | H42: 315 | I42: 315 | J42: 315 | K42: 315 | L42: 315 | M42: 315 | N42: 315 | O42: 315 | P42: =SUM(D42:O42) -> 3,780 | Q42: =INDEX($D42:$P42,,SelectedPeriodColumn)/INDEX($D$73:$P$73,,SelectedPeriodColumn) -> 14.1%
C43: भोजन (किराना या भोजन योजना) | D43: 200 | E43: 200 | F43: 200 | G43: 200 | H43: 200 | I43: 200 | J43: 200 | K43: 200 | L43: 200 | M43: 200 | N43: 200 | O43: 200 | P43: =SUM(D43:O43) -> 2,400 | Q43: =INDEX($D43:$P43,,SelectedPeriodColumn)/INDEX($D$73:$P$73,,SelectedPeriodColumn) -> 9.0%
C44: उपयोगिताएँ (गर्मी, पानी, बिजली) | D44: 50 | E44: 50 | F44: 50 | G44: 50 | H44: 50 | I44: 50 | J44: 50 | K44: 50 | L44: 50 | M44: 50 | N44: 50 | O44: 50 | P44: =SUM(D44:O44) -> 600 | Q44: =INDEX($D44:$P44,,SelectedPeriodColumn)/INDEX($D$73:$P$73,,SelectedPeriodColumn) -> 2.2%
B46: ट्यूशन शुल्क | D46: =SUM(D47:D48) -> 0 | E46: 0 | F46: 750 | G46: 0 | H46: 0 | I46: 650 | J46: 0 | K46: 0 | L46: 650 | M46: 0 | N46: 0 | O46: 0 | P46: =SUM(D46:O46) -> 2,050 | Q46: =INDEX($D46:$P46,,SelectedPeriodColumn)/INDEX($D$73:$P$73,,SelectedPeriodColumn) -> 33.6%
C47: आपके द्वारा चुकाई जाने वाली ट्यूशन | D47: 0 | E47: 0 | F47: 500 | G47: 0 | H47: 0 | I47: 500 | J47: 0 | K47: 0 | L47: 500 | M47: 0 | N47: 0 | O47: 0 | P47: =SUM(D47:O47) -> 1,500 | Q47: =INDEX($D47:$P47,,SelectedPeriodColumn)/INDEX($D$73:$P$73,,SelectedPeriodColumn) -> 22.4%
C48: चुकाई जाने वाला शुल्क | D48: 0 | E48: 0 | F48: 250 | G48: 0 | H48: 0 | I48: 150 | J48: 0 | K48: 0 | L48: 150 | M48: 0 | N48: 0 | O48: 0 | P48: =SUM(D48:O48) -> 550 | Q48: =INDEX($D48:$P48,,SelectedPeriodColumn)/INDEX($D$73:$P$73,,SelectedPeriodColumn) -> 11.2%
B50: पुस्तकें और आपूर्ति | D50: =SUM(D51:D52) -> 0 | E50: 0 | F50: 325 | G50: 20 | H50: 20 | I50: 325 | J50: 10 | K50: 10 | L50: 400 | M50: 15 | N50: 15 | O50: 15 | P50: =SUM(D50:O50) -> 1,155 | Q50: =INDEX($D50:$P50,,SelectedPeriodColumn)/INDEX($D$73:$P$73,,SelectedPeriodColumn) -> 14.6%
C51: पाठ्यपुस्तिकाएँ | D51: 0 | E51: 0 | F51: 225 | G51: 0 | H51: 0 | I51: 275 | J51: 0 | K51: 0 | L51: 325 | M51: 0 | N51: 0 | O51: 0 | P51: =SUM(D51:O51) -> 825 | Q51: =INDEX($D51:$P51,,SelectedPeriodColumn)/INDEX($D$73:$P$73,,SelectedPeriodColumn) -> 10.1%
C52: विद्यालय की आपूर्ति | D52: 0 | E52: 0 | F52: 100 | G52: 20 | H52: 20 | I52: 50 | J52: 10 | K52: 10 | L52: 75 | M52: 15 | N52: 15 | O52: 15 | P52: =SUM(D52:O52) -> 330 | Q52: =INDEX($D52:$P52,,SelectedPeriodColumn)/INDEX($D$73:$P$73,,SelectedPeriodColumn) -> 4.5%
B54: परिवहन | D54: =SUM(D55:D58) -> 224 | E54: 174 | F54: 174 | G54: 219 | H54: 174 | I54: 174 | J54: 274 | K54: 219 | L54: 174 | M54: 174 | N54: 224 | O54: 269 | P54: =SUM(D54:O54) -> 2,473 | Q54: =INDEX($D54:$P54,,SelectedPeriodColumn)/INDEX($D$73:$P$73,,SelectedPeriodColumn) -> 7.8%
C55: गैस, रखरखाव | D55: 30 | E55: 30 | F55: 30 | G55: 75 | H55: 30 | I55: 30 | J55: 30 | K55: 75 | L55: 30 | M55: 30 | N55: 30 | O55: 75 | P55: =SUM(D55:O55) -> 495 | Q55: =INDEX($D55:$P55,,SelectedPeriodColumn)/INDEX($D$73:$P$73,,SelectedPeriodColumn) -> 1.3%
C56: वाहन भुगतान | D56: 129 | E56: 129 | F56: 129 | G56: 129 | H56: 129 | I56: 129 | J56: 129 | K56: 129 | L56: 129 | M56: 129 | N56: 129 | O56: 129 | P56: =SUM(D56:O56) -> 1,548 | Q56: =INDEX($D56:$P56,,SelectedPeriodColumn)/INDEX($D$73:$P$73,,SelectedPeriodColumn) -> 5.8%
C57: हस्तांतरण किराया | D57: 15 | E57: 15 | F57: 15 | G57: 15 | H57: 15 | I57: 15 | J57: 15 | K57: 15 | L57: 15 | M57: 15 | N57: 15 | O57: 15 | P57: =SUM(D57:O57) -> 180 | Q57: =INDEX($D57:$P57,,SelectedPeriodColumn)/INDEX($D$73:$P$73,,SelectedPeriodColumn) -> 0.7%
C58: अवकाश पर यात्रा | D58: 50 | E58: 0 | F58: 0 | G58: 0 | H58: 0 | I58: 0 | J58: 100 | K58: 0 | L58: 0 | M58: 0 | N58: 50 | O58: 50 | P58: =SUM(D58:O58) -> 250 | Q58: =INDEX($D58:$P58,,SelectedPeriodColumn)/INDEX($D$73:$P$73,,SelectedPeriodColumn) -> 0.0%
B60: विवेकाधीन | D60: =SUM(D61:D66) -> 69 | E60: 69 | F60: 169 | G60: 369 | H60: 419 | I60: 444 | J60: 419 | K60: 419 | L60: 394 | M60: 394 | N60: 419 | O60: 469 | P60: =SUM(D60:O60) -> 4,053 | Q60: =INDEX($D60:$P60,,SelectedPeriodColumn)/INDEX($D$73:$P$73,,SelectedPeriodColumn) -> 7.6%
C61: बचत | D61: 0 | E61: 0 | F61: 0 | G61: 50 | H61: 100 | I61: 100 | J61: 100 | K61: 100 | L61: 75 | M61: 75 | N61: 100 | O61: 100 | P61: 800 | Q61: =INDEX($D61:$P61,,SelectedPeriodColumn)/INDEX($D$73:$P$73,,SelectedPeriodColumn) -> 0.0%
C62: सेल फ़ोन, इंटरनेट, केबल | D62: 69 | E62: 69 | F62: 69 | G62: 69 | H62: 69 | I62: 69 | J62: 69 | K62: 69 | L62: 69 | M62: 69 | N62: 69 | O62: 69 | P62: 828 | Q62: =INDEX($D62:$P62,,SelectedPeriodColumn)/INDEX($D$73:$P$73,,SelectedPeriodColumn) -> 3.1%
C63: अनुदान | D63: 0 | E63: 0 | F63: 0 | G63: 0 | H63: 0 | I63: 25 | J63: 0 | K63: 0 | L63: 0 | M63: 0 | N63: 0 | O63: 50 | P63: 75 | Q63: =INDEX($D63:$P63,,SelectedPeriodColumn)/INDEX($D$73:$P$73,,SelectedPeriodColumn) -> 0.0%
C64: नाश्ता, बाहर भोजन | D64: 0 | E64: 0 | F64: 100 | G64: 100 | H64: 100 | I64: 100 | J64: 100 | K64: 100 | L64: 100 | M64: 100 | N64: 100 | O64: 100 | P64: 1,000 | Q64: =INDEX($D64:$P64,,SelectedPeriodColumn)/INDEX($D$73:$P$73,,SelectedPeriodColumn) -> 4.5%
C65: कपड़े | D65: 0 | E65: 0 | F65: 0 | G65: 50 | H65: 50 | I65: 50 | J65: 50 | K65: 50 | L65: 50 | M65: 50 | N65: 50 | O65: 50 | P65: 450 | Q65: =INDEX($D65:$P65,,SelectedPeriodColumn)/INDEX($D$73:$P$73,,SelectedPeriodColumn) -> 0.0%
C66: मनोरंजन (मूवीज़, डेट, कॉन्सर्ट) | D66: 0 | E66: 0 | F66: 0 | G66: 100 | H66: 100 | I66: 100 | J66: 100 | K66: 100 | L66: 100 | M66: 100 | N66: 100 | O66: 100 | P66: 900 | Q66: =INDEX($D66:$P66,,SelectedPeriodColumn)/INDEX($D$73:$P$73,,SelectedPeriodColumn) -> 0.0%
B68: अन्य व्यय | D68: =SUM(D69:D71) -> 198 | E68: =SUM(E69:E71) -> 198 | F68: 250 | G68: 253 | H68: 243 | I68: 238 | J68: 233 | K68: 258 | L68: 263 | M68: 268 | N68: 268 | O68: 268 | P68: =SUM(D68:O68) -> 2,938 | Q68: =INDEX($D68:$P68,,SelectedPeriodColumn)/INDEX($D$73:$P$73,,SelectedPeriodColumn) -> 11.2%
C69: बीमा (कार, स्वास्थ्य, किरायेदार का) | D69: 123 | E69: 123 | F69: 123 | G69: 123 | H69: 123 | I69: 123 | J69: 123 | K69: 123 | L69: 123 | M69: 123 | N69: 123 | O69: 123 | P69: =SUM(D69:O69) -> 1,476 | Q69: =INDEX($D69:$P69,,SelectedPeriodColumn)/INDEX($D$73:$P$73,,SelectedPeriodColumn) -> 5.5%
C70: ऋण, क्रेडिट कार्ड भुगतान | D70: 0 | E70: 0 | F70: 52 | G70: 55 | H70: 45 | I70: 40 | J70: 35 | K70: 60 | L70: 65 | M70: 70 | N70: 70 | O70: 70 | P70: =SUM(D70:O70) -> 562 | Q70: =INDEX($D70:$P70,,SelectedPeriodColumn)/INDEX($D$73:$P$73,,SelectedPeriodColumn) -> 2.3%
C71: अन्य | D71: 75 | E71: 75 | F71: 75 | G71: 75 | H71: 75 | I71: 75 | J71: 75 | K71: 75 | L71: 75 | M71: 75 | N71: 75 | O71: 75 | P71: =SUM(D71:O71) -> 900 | Q71: =INDEX($D71:$P71,,SelectedPeriodColumn)/INDEX($D$73:$P$73,,SelectedPeriodColumn) -> 3.4%
B73: कुल व्यय | D73: =SUM(D41,D46,D50,D54,D60,D68) -> 1,056 | E73: 1,006 | F73: 2,233 | G73: 1,426 | H73: 1,421 | I73: 2,396 | J73: 1,501 | K73: 1,471 | L73: 2,446 | M73: 1,416 | N73: 1,491 | O73: 1,586 | P73: =SUM(D73:O73) -> 19,449 | Q73: =INDEX($D73:$P73,,SelectedPeriodColumn)/INDEX($D$73:$P$73,,SelectedPeriodColumn) -> 100.0%

Sheet chart_calcs (hidden)
A1: ***यह पत्रक छुपा रहना चाहिए***
D3: =IFERROR(LOWER(TEXT(VALUE(SelectedPeriod&" 1"),"[$-1010439]mmmm")),"year") -> मार्च
D5: गति‍शील चार्ट शीर्षक
D6: =D3&"आय:" -> मार्चआय: | F6: =TEXT(INDEX('मासिक कॉलेज बजट'!$D$38:$P$38,,SelectedPeriodColumn),"रु#,###") -> रु2,425
D7: =D3&" व्यय:" -> मार्च व्यय: | F7: =TEXT(INDEX('मासिक कॉलेज बजट'!$D$73:$P$73,,SelectedPeriodColumn),"रु#,###") -> रु2,233
D8: =D3&" नकद प्रवाहों:" -> मार्च नकद प्रवाहों: | E8: =INDEX('मासिक कॉलेज बजट'!D29:P29,ScrollBarValue) -> 192 | F8: =TEXT(E8,"रु#,###") -> रु192
D12: =LOWER('मासिक कॉलेज बजट'!D28) -> जनवरी | E12: =LOWER('मासिक कॉलेज बजट'!E28) -> फरवरी | F12: =LOWER('मासिक कॉलेज बजट'!F28) -> मार्च | G12: =LOWER('मासिक कॉलेज बजट'!G28) -> अप्रैल | H12: =LOWER('मासिक कॉलेज बजट'!H28) -> मई | I12: =LOWER('मासिक कॉलेज बजट'!I28) -> जून | J12: =LOWER('मासिक कॉलेज बजट'!J28) -> जुलाई | K12: =LOWER('मासिक कॉलेज बजट'!K28) -> अगस्त | L12: =LOWER('मासिक कॉलेज बजट'!L28) -> सितम्बर | M12: =LOWER('मासिक कॉलेज बजट'!M28) -> अक्तूबर | N12: =LOWER('मासिक कॉलेज बजट'!N28) -> नवम्बर | O12: =LOWER('मासिक कॉलेज बजट'!O28) -> दिसम्बर | P12: वर्ष
C13: स्क्रॉल पट्टी मान: | D13: 3
C14: नकद प्रवा चार्ट: | D14: =IF(SelectedPeriod='मासिक कॉलेज बजट'!D$32,IF('मासिक कॉलेज बजट'!$D$29:$P$29>=0,'मासिक कॉलेज बजट'!$D$29:$P$29,NA()),NA()) ->  | E14: =IF(SelectedPeriod='मासिक कॉलेज बजट'!E$32,IF('मासिक कॉलेज बजट'!$D$29:$P$29>=0,'मासिक कॉलेज बजट'!$D$29:$P$29,NA()),NA()) ->  | F14: =IF(SelectedPeriod='मासिक कॉलेज बजट'!F$32,IF('मासिक कॉलेज बजट'!$D$29:$P$29>=0,'मासिक कॉलेज बजट'!$D$29:$P$29,NA()),NA()) -> 192 | G14: =IF(SelectedPeriod='मासिक कॉलेज बजट'!G$32,IF('मासिक कॉलेज बजट'!$D$29:$P$29>=0,'मासिक कॉलेज बजट'!$D$29:$P$29,NA()),NA()) ->  | H14: =IF(SelectedPeriod='मासिक कॉलेज बजट'!H$32,IF('मासिक कॉलेज बजट'!$D$29:$P$29>=0,'मासिक कॉलेज बजट'!$D$29:$P$29,NA()),NA()) ->  | I14: =IF(SelectedPeriod='मासिक कॉलेज बजट'!I$32,IF('मासिक कॉलेज बजट'!$D$29:$P$29>=0,'मासिक कॉलेज बजट'!$D$29:$P$29,NA()),NA()) ->  | J14: =IF(SelectedPeriod='मासिक कॉलेज बजट'!J$32,IF('मासिक कॉलेज बजट'!$D$29:$P$29>=0,'मासिक कॉलेज बजट'!$D$29:$P$29,NA()),NA()) ->  | K14: =IF(SelectedPeriod='मासिक कॉलेज बजट'!K$32,IF('मासिक कॉलेज बजट'!$D$29:$P$29>=0,'मासिक कॉलेज बजट'!$D$29:$P$29,NA()),NA()) ->  | L14: =IF(SelectedPeriod='मासिक कॉलेज बजट'!L$32,IF('मासिक कॉलेज बजट'!$D$29:$P$29>=0,'मासिक कॉलेज बजट'!$D$29:$P$29,NA()),NA()) ->  | M14: =IF(SelectedPeriod='मासिक कॉलेज बजट'!M$32,IF('मासिक कॉलेज बजट'!$D$29:$P$29>=0,'मासिक कॉलेज बजट'!$D$29:$P$29,NA()),NA()) ->  | N14: =IF(SelectedPeriod='मासिक कॉलेज बजट'!N$32,IF('मासिक कॉलेज बजट'!$D$29:$P$29>=0,'मासिक कॉलेज बजट'!$D$29:$P$29,NA()),NA()) ->  | O14: =IF(SelectedPeriod='मासिक कॉलेज बजट'!O$32,IF('मासिक कॉलेज बजट'!$D$29:$P$29>=0,'मासिक कॉलेज बजट'!$D$29:$P$29,NA()),NA()) ->  | P14: =IF(SelectedPeriod='मासिक कॉलेज बजट'!P$32,IF('मासिक कॉलेज बजट'!$D$29:$P$29>=0,'मासिक कॉलेज बजट'!$D$29:$P$29,NA()),NA()) -> 
C15: संचयी: | D15: =IF(SelectedPeriod='मासिक कॉलेज बजट'!D$32,IF('मासिक कॉलेज बजट'!$D$29:$P$29<0,'मासिक कॉलेज बजट'!$D$29:$P$29,NA()),NA()) ->  | E15: =IF(SelectedPeriod='मासिक कॉलेज बजट'!E$32,IF('मासिक कॉलेज बजट'!$D$29:$P$29<0,'मासिक कॉलेज बजट'!$D$29:$P$29,NA()),NA()) ->  | F15: =IF(SelectedPeriod='मासिक कॉलेज बजट'!F$32,IF('मासिक कॉलेज बजट'!$D$29:$P$29<0,'मासिक कॉलेज बजट'!$D$29:$P$29,NA()),NA()) ->  | G15: =IF(SelectedPeriod='मासिक कॉलेज बजट'!G$32,IF('मासिक कॉलेज बजट'!$D$29:$P$29<0,'मासिक कॉलेज बजट'!$D$29:$P$29,NA()),NA()) ->  | H15: =IF(SelectedPeriod='मासिक कॉलेज बजट'!H$32,IF('मासिक कॉलेज बजट'!$D$29:$P$29<0,'मासिक कॉलेज बजट'!$D$29:$P$29,NA()),NA()) ->  | I15: =IF(SelectedPeriod='मासिक कॉलेज बजट'!I$32,IF('मासिक कॉलेज बजट'!$D$29:$P$29<0,'मासिक कॉलेज बजट'!$D$29:$P$29,NA()),NA()) ->  | J15: =IF(SelectedPeriod='मासिक कॉलेज बजट'!J$32,IF('मासिक कॉलेज बजट'!$D$29:$P$29<0,'मासिक कॉलेज बजट'!$D$29:$P$29,NA()),NA()) ->  | K15: =IF(SelectedPeriod='मासिक कॉलेज बजट'!K$32,IF('मासिक कॉलेज बजट'!$D$29:$P$29<0,'मासिक कॉलेज बजट'!$D$29:$P$29,NA()),NA()) ->  | L15: =IF(SelectedPeriod='मासिक कॉलेज बजट'!L$32,IF('मासिक कॉलेज बजट'!$D$29:$P$29<0,'मासिक कॉलेज बजट'!$D$29:$P$29,NA()),NA()) ->  | M15: =IF(SelectedPeriod='मासिक कॉलेज बजट'!M$32,IF('मासिक कॉलेज बजट'!$D$29:$P$29<0,'मासिक कॉलेज बजट'!$D$29:$P$29,NA()),NA()) ->  | N15: =IF(SelectedPeriod='मासिक कॉलेज बजट'!N$32,IF('मासिक कॉलेज बजट'!$D$29:$P$29<0,'मासिक कॉलेज बजट'!$D$29:$P$29,NA()),NA()) ->  | O15: =IF(SelectedPeriod='मासिक कॉलेज बजट'!O$32,IF('मासिक कॉलेज बजट'!$D$29:$P$29<0,'मासिक कॉलेज बजट'!$D$29:$P$29,NA()),NA()) ->  | P15: =IF(SelectedPeriod='मासिक कॉलेज बजट'!P$32,IF('मासिक कॉलेज बजट'!$D$29:$P$29<0,'मासिक कॉलेज बजट'!$D$29:$P$29,NA()),NA()) -> 
C18: आय चार्ट डेटा
C19: आपको दी गई वित्तीय सहायता (अनुदान, छात्रवृत्ति, ऋण) | D19: ='मासिक कॉलेज बजट'!Q33 -> 30.9%
C20: किसी कार्य से कर के बाद का वेतन | D20: ='मासिक कॉलेज बजट'!Q34 -> 18.6%
C21: परिवार से आर्थिक सहायता | D21: ='मासिक कॉलेज बजट'!Q35 -> 41.2%
C22: बचत से निकासी | D22: ='मासिक कॉलेज बजट'!Q36 -> 6.2%
C23: अन्य (बाल समर्थन, सार्वजनिक सहायता, उपहार आदि) | D23: ='मासिक कॉलेज बजट'!Q37 -> 3.1%
